[Event "AI Cup Div-2 2023"]
[Site "Online"]
[Date "2023.09.28"]
[Round "54.2"]
[White "Kuzubov, Yuriy"]
[Black "Sarana, Alexey"]
[Result "1-0"]
[ECO "D78"]
[WhiteElo "2625"]
[BlackElo "2693"]
[Annotator "TA"]
[PlyCount "175"]
[EventDate "2023.09.18"]
[EventType "k.o."]
[EventCountry "NET"]
[SourceTitle "playchess.com"]
[Source "ChessBase"]
[SourceQuality "1"]
[TimeControl "900+3"]

{[%evp 18,175,32,13,33,20,17,9,88,93,78,71,78,80,93,78,87,89,100,85,100,87,91,95,129,110,152,116,151,114,193,162,193,191,191,112,155,105,104,109,113,111,114,117,112,115,116,109,118,97,110,80,144,98,108,97,118,118,122,122,124,127,125,110,135,110,144,127,168,156,168,172,168,107,202,197,198,139,211,222,222,222,346,371,366,358,344,307,325,319,306,287,389,321,312,289,347,338,590,504,481,429,763,764,601,353,760,698,970,1004,977,715,982,912,952,754,899,624,12827,1889,1354,1390,12832,12831,12830,12831,12830,9349,12832,12832,12842,12835,12835,12833,12833,12833,12837,12838,12839,12839,12840,12839,12840,12840,12844,12842,12846,12845,12845,12845,12845,12846,12846,12847,12847,12846,12847,12847,12848,12847]} 1. Nf3 {[%emt 0:00:04]} d5 {[%emt 0:00:05]} 2. g3 {[%emt 0:00:01]} g6 {[%emt 0:00:02]} 3. c4 {[%emt 0:00:03]} c6 {[%emt 0:00:02]} 4. Qa4 {[%emt 0:00:08]} Nd7 {[%emt 0:00:09]} 5. cxd5 {[%emt 0:00:04]} cxd5 {[%emt 0:00:02]} 6. Nc3 {[%emt 0:00:16]} Ngf6 {[%emt 0:00:01]} 7. d4 {[%emt 0:00:13]} Bg7 {[%emt 0:00:03]} 8. Bg2 {[%emt 0:00:25]} O-O {[%emt 0:00:01]} 9. O-O {[%emt 0:00:01]} Nb6 {[%emt 0:00:10]} 10. Qb3 {[%emt 0:00:08]} Bf5 {[%emt 0:00:31] D78: Fianchetto Grünfeld: 6 0-0 c6.} 11. Bf4 {[%emt 0:00:37]} (11. Ne5 {with more complications.} Ne4 12. a4 a5 13. Bf4) 11... Ne4 {[%emt 0:00:11]} 12. Rac1 {[%emt 0:00:16] [#]} Nd6 $146 {[%emt 0:01:00]} (12... h6 $11 {keeps the balance.}) ({Predecessor:} 12... e6 13. h4 Rc8 14. Nb5 a6 15. Na7 Rc4 16. Ne5 Bxe5 17. dxe5 Qc7 18. Qe3 d4 {1-0 Galperin,P (2518)-Mirzoev,E (2493) Pontevedra op-A 10th 2022 (8)}) 13. Nxd5 $16 {[%emt 0:05:34]} Nxd5 {[%emt 0:00:05]} 14. Qxd5 {[%emt 0:00:02]} Be6 {[%emt 0:00:01]} 15. Qc5 {[%emt 0:00:03]} Bxa2 {[%emt 0:00:07]} 16. Nd2 {[%emt 0:01:00] [#] Strongly threatening b3.} Be6 {[%emt 0:00:09]} 17. e3 {[%emt 0:00:11] White has more active pieces. The black rooks are badly placed.} Qd7 {[%emt 0:00:27]} 18. Bxd6 {[%emt 0:00:39]} exd6 {[%emt 0:00:18]} 19. Qc7 {[%emt 0:00:09]} Qb5 {[%emt 0:00:28]} 20. Qxb7 {[%emt 0:00:23]} Rab8 {[%emt 0:00:50]} 21. Qxa7 {[%emt 0:00:15]} Rfd8 {[%emt 0:01:30]} 22. b3 {[%emt 0:00:21]} Qd3 {[%emt 0:00:36]} 23. Qa2 {[%emt 0:00:13]} Rdc8 {[%emt 0:00:08]} (23... d5 $16 24. Ra1 Bf8) 24. Rfe1 {[%emt 0:00:57]} h5 {[%emt 0:00:14]} 25. Bf1 {[%emt 0:00:06]} Qf5 {[%emt 0:00:02]} 26. Nc4 {[%emt 0:00:15]} (26. Rxc8+ $18 Rxc8 27. Qb1) 26... Rd8 {[%emt 0:00:05]} 27. Qc2 {[%emt 0:00:55]} ({Better is} 27. Bg2) 27... Qxc2 {[%emt 0:00:18]} 28. Rxc2 {[%emt 0:00:01]} Rxb3 {[%emt 0:00:00]} 29. Nd2 {[%emt 0:00:05]} Rb6 {[%emt 0:00:05]} 30. Rec1 {[%emt 0:00:03]} Bf6 {[%emt 0:00:08]} 31. h4 {[%emt 0:00:03]} Rdb8 {[%emt 0:00:12]} 32. Bg2 {[%emt 0:00:12]} Kf8 {[%emt 0:00:14]} 33. Bf3 {[%emt 0:00:14]} Be7 {[%emt 0:00:06]} 34. Kg2 {[%emt 0:00:03]} Bf5 {[%emt 0:00:06]} ({Black should try} 34... d5) 35. Be4 {[%emt 0:00:03]} (35. Rc7 $142) 35... Be6 {[%emt 0:00:05]} 36. Nf3 {[%emt 0:00:28]} Rb5 {[%emt 0:00:05]} 37. Ng1 {[%emt 0:00:02]} g5 {[%emt 0:00:14]} 38. hxg5 {[%emt 0:00:06]} Bxg5 {[%emt 0:00:00]} 39. Nf3 {[%emt 0:00:07]} Be7 {[%emt 0:00:04]} 40. Rh1 {[%emt 0:00:10]} Kg7 {[%emt 0:00:10]} 41. Nh4 {[%emt 0:00:13]} Kf6 {[%emt 0:00:39]} 42. Bf3 {[%emt 0:00:12]} Rh8 {[%emt 0:00:14]} 43. Rd1 {[%emt 0:00:08]} Kg7 {[%emt 0:00:07]} 44. d5 {[%emt 0:00:04]} Bc8 {[%emt 0:00:08]} 45. Rdc1 {[%emt 0:00:13]} (45. Rd4 $18) 45... Rb8 {[%emt 0:00:37]} (45... Bxh4 $16 46. Rxc8 Rxc8 47. Rxc8 Bf6) 46. Rc4 {[%emt 0:00:05]} Bd7 {[%emt 0:00:17]} 47. Re4 {[%emt 0:00:17]} (47. Rc7 $18 Rbd8 48. R1c4) 47... Bf6 {[%emt 0:00:04]} (47... Bd8 $16 {was necessary.} 48. Ra1 Bc8) 48. Rc7 $18 {[%emt 0:00:03]} Rbd8 {[%emt 0:00:01]} 49. Rb4 {[%emt 0:00:07]} Kf8 {[%emt 0:00:48]} (49... Bc8 {was worth a try.} 50. Rbc4 Bg5) 50. Rbb7 {[%emt 0:00:09]} Bxh4 {[%emt 0:00:02]} 51. gxh4 {[%emt 0:00:08]} ({Less strong is} 51. Rxd7 Rxd7 52. Rxd7 Be7 $18) 51... Be8 {[%emt 0:00:02]} 52. Kg3 {[%emt 0:00:09]} Ra8 {[%emt 0:00:15]} 53. Rb4 {[%emt 0:00:21]} Rh6 {[%emt 0:00:39]} 54. Be4 {[%emt 0:00:11] Against Rg6+} Rf6 {[%emt 0:00:08]} 55. f3 {[%emt 0:00:03]} Kg7 {[%emt 0:00:05]} 56. Rb2 {[%emt 0:00:06]} Kf8 {[%emt 0:00:24]} 57. Rbc2 {[%emt 0:00:02]} Kg7 $2 {[%emt 0:00:35]} (57... Rd8 58. Rb2 Ra8) 58. Rc8 {[%emt 0:00:02]} Rxc8 {[%emt 0:00:01]} 59. Rxc8 {[%emt 0:00:01][%mdl 4096] Endgame KRB-KRB} Bb5 {[%emt 0:00:00]} (59... Kf8 $142 60. Bd3 Ke7) 60. Rb8 {[%emt 0:00:06]} Ba4 {[%emt 0:00:02]} 61. Kf2 {[%emt 0:00:05]} Bd7 $2 {[%emt 0:00:07]} (61... Rh6 62. Rb4 Bd7) 62. Rd8 {[%emt 0:00:02] White is clearly winning.} Bb5 {[%emt 0:00:01]} 63. f4 {[%emt 0:00:02][%cal Bf3f4,Bf4f5][%mdl 32]} Bc4 {[%emt 0:00:05]} 64. Kg3 {[%emt 0:00:02]} Bb3 {[%emt 0:00:02]} 65. f5 {[%emt 0:00:01]} Bd1 {[%emt 0:00:08]} 66. Kf4 {[%emt 0:00:03]} Rh6 {[%emt 0:00:39]} 67. Kg5 {[%emt 0:00:04]} f6+ {[%emt 0:00:00]} 68. Kf4 {[%emt 0:00:01]} Rh8 {[%emt 0:00:01]} 69. Rd7+ {[%emt 0:00:02]} Kf8 {[%emt 0:00:16]} 70. Rxd6 {[%emt 0:00:01]} Ke7 {[%emt 0:00:01]} 71. Re6+ {[%emt 0:00:03]} Kf7 {[%emt 0:00:00]} 72. Rb6 {[%emt 0:00:06]} Ra8 {[%emt 0:00:15]} 73. d6 {[%emt 0:00:08]} Ra4 {[%emt 0:00:01]} 74. d7 {[%emt 0:00:04]} Ke7 {[%emt 0:00:09] [#]} 75. d8=Q+ $1 {[%emt 0:00:02][%mdl 64] Decoy} Kxd8 {[%emt 0:00:01]} 76. Rd6+ {[%emt 0:00:00]} Ke7 {[%emt 0:00:01]} 77. Rxd1 {[%emt 0:00:00] KRB-KR} Ra2 {[%emt 0:00:00]} 78. Bf3 {[%emt 0:00:03]} Ra4+ {[%emt 0:00:01]} 79. e4 {[%emt 0:00:01][%cal Be3e4,Be4e5,Be5e6,Be6e7][%mdl 32]} Ra8 {[%emt 0:00:01]} 80. Bxh5 {[%emt 0:00:02]} Rh8 {[%emt 0:00:00]} 81. Bg4 {[%emt 0:00:01]} Rxh4 {[%emt 0:00:01]} 82. Ra1 {[%emt 0:00:01]} Rh2 {[%emt 0:00:01]} 83. Ra7+ {[%emt 0:00:01]} Kf8 {[%emt 0:00:00]} 84. e5 {[%emt 0:00:04]} Rf2+ {[%emt 0:00:01]} 85. Kg3 {[%emt 0:00:01]} Rb2 {[%emt 0:00:03]} 86. e6 {[%emt 0:00:02] White wants to mate with e7+.} Kg8 {[%emt 0:00:04]} 87. e7 {[%emt 0:00:04][%cal Re7e8]} Rb8 {[%emt 0:00:01]} 88. Bh5 {[%emt 0:00:06] Weighted Error Value: White=0.16 (very precise) /Black=0.29 (precise)} 1-0

[Event "AI Cup Div-2 2023"]
[Site "Online"]
[Date "2023.09.28"]
[Round "55.1"]
[White "Kuzubov, Yuriy"]
[Black "Caruana, Fabiano"]
[Result "1-0"]
[ECO "D38"]
[WhiteElo "2625"]
[BlackElo "2786"]
[Annotator "TA"]
[PlyCount "139"]
[EventDate "2023.09.18"]
[EventType "k.o."]
[EventCountry "NET"]
[SourceTitle "playchess.com"]
[Source "ChessBase"]
[SourceQuality "1"]
[TimeControl "900+3"]

{[%evp 16,139,16,14,20,8,73,63,49,55,53,41,91,42,80,70,71,71,69,62,109,56,58,64,56,59,58,55,79,35,87,37,57,0,90,90,118,104,153,142,152,153,153,145,160,147,145,145,151,153,160,145,163,159,170,121,122,143,122,119,127,64,65,72,63,63,71,54,79,30,177,31,128,121,135,135,203,119,111,112,92,42,16,27,25,0,0,0,7,8,8,14,25,25,25,25,25,26,1116,1116,1116,1116,1116,1116,1116,1116,1109,1109,1109,1109,1109,1040,1018,970,29982,29983,29983,29984,29983,29984,29984,29985,29986,29987,29986,29987]} 1. d4 {[%emt 0:00:08]} Nf6 {[%emt 0:00:06]} 2. Nf3 {[%emt 0:00:01]} d5 {[%emt 0:00:02]} 3. c4 {[%emt 0:00:06]} e6 {[%emt 0:00:02]} 4. Nc3 {[%emt 0:00:02]} Bb4 {[%emt 0:00:01]} 5. Bg5 {[%emt 0:00:09]} h6 {[%emt 0:00:01]} 6. Bxf6 {[%emt 0:00:01]} Qxf6 {[%emt 0:00:00]} 7. e3 {[%emt 0:00:01]} c5 {[%emt 0:00:02]} 8. cxd5 {[%emt 0:00:12]} exd5 {[%emt 0:00:00]} 9. Bb5+ {[%emt 0:00:01]} Bd7 {[%emt 0:00:03] D38: Queen's Gambit Declined: Ragozin Defence (4 Nf3 Bb4).} 10. Qa4 $5 {[%emt 0:01:24][%mdl 4] [#] A promising side line.} Bxb5 $146 {[%emt 0:00:58]} (10... a6 $11 11. Bxd7+ Nxd7) ({Predecessor:} 10... a6 11. Bxd7+ Nxd7 12. O-O b5 13. Nxb5 Nb6 14. Nc7+ Kd8 15. Qc2 Kxc7 16. dxc5 Nc4 17. a3 Qxb2 18. Qf5 Nxa3 19. Ne5 Rhe8 20. Qxf7+ Kb8 21. Nd7+ Kb7 22. Nb6+ Kc6 23. Qd7+ Kxc5 24. Na4+ {1-0 Hesham,A (2400)-Ssegwanyi,A (2366) Africa-ch Kampala 2016 (6)}) 11. Qxb5+ $16 {[%emt 0:00:03]} Qc6 {[%emt 0:00:01] White is slightly better.} 12. Qxc6+ {[%emt 0:00:43]} bxc6 {[%emt 0:00:57]} 13. Rc1 {[%emt 0:00:07]} Nd7 {[%emt 0:00:22]} (13... c4 $1 $14) 14. Ke2 {[%emt 0:02:55]} (14. dxc5 $16 Bxc5 15. O-O) 14... c4 {[%emt 0:02:09]} 15. b3 {[%emt 0:00:08]} cxb3 {[%emt 0:00:22]} 16. axb3 {[%emt 0:00:02]} Bd6 {[%emt 0:00:03]} 17. Na4 {[%emt 0:00:29]} Rc8 {[%emt 0:00:04]} (17... Nb8 $14) 18. Ne1 {[%emt 0:00:46]} (18. Rc2 $16) 18... Ke7 {[%emt 0:00:29]} 19. Nd3 {[%emt 0:00:03]} Rc7 {[%emt 0:00:03]} 20. Rc3 {[%emt 0:00:53]} Rhc8 {[%emt 0:00:28]} 21. Rhc1 {[%emt 0:00:23]} h5 {[%emt 0:00:02]} 22. h4 {[%emt 0:00:29]} g6 {[%emt 0:00:03]} (22... a5 $14) 23. Ra1 {[%emt 0:00:22]} (23. b4 $1 $16) 23... Rb8 {[%emt 0:00:15]} 24. Rac1 {[%emt 0:00:50]} Rbc8 $1 {[%emt 0:00:03]} 25. b4 $1 {[%emt 0:00:02]} Ke6 {[%emt 0:02:02]} 26. Ra1 {[%emt 0:00:19]} Rb8 {[%emt 0:00:32]} (26... Kf5 $142) 27. Nac5+ {[%emt 0:00:12]} Bxc5 {[%emt 0:02:27]} 28. bxc5 {[%emt 0:00:03]} (28. Nxc5+ $6 Nxc5 29. bxc5 f6 $14) 28... Rbb7 {[%emt 0:00:06]} 29. Rca3 {[%emt 0:00:31] White is more active.} f6 {[%emt 0:00:10]} 30. Rh1 {[%emt 0:00:55]} Kf7 {[%emt 0:00:05]} 31. Kf3 {[%emt 0:00:23]} Nf8 {[%emt 0:00:54]} 32. Rha1 {[%emt 0:00:13]} Ne6 {[%emt 0:00:35]} 33. Ra6 {[%emt 0:00:07]} Ke7 {[%emt 0:00:16]} 34. R1a4 {[%emt 0:00:41]} Kd7 {[%emt 0:00:02]} 35. Nf4 {[%emt 0:00:16]} (35. g3 $18) 35... Nxf4 {[%emt 0:00:19]} 36. Kxf4 {[%emt 0:00:00][%mdl 4096] Endgame KRR-KRR} (36. exf4 $6 Rb3+ 37. Ke2 Rb2+ 38. Kf3 Rb3+ 39. Ke2 Rb2+ 40. Kf3 Rb3+ $11) 36... Kc8 {[%emt 0:00:00]} 37. f3 {[%emt 0:00:07]} Kb8 {[%emt 0:00:08]} 38. e4 {[%emt 0:00:29]} (38. g4 $16) 38... dxe4 $14 {[%emt 0:00:02]} 39. fxe4 {[%emt 0:00:00]} Rb2 {[%emt 0:00:14]} 40. Ra2 {[%emt 0:00:47]} Rb1 {[%emt 0:00:02]} 41. Rf2 {[%emt 0:00:33]} (41. Ra1 $5 {[%cal Ra1b1]} Rb2 42. R6a2 $14) 41... Rd1 {[%emt 0:00:46]} 42. Ra4 {[%emt 0:00:23]} (42. Ke3 $16) 42... Rb7 {[%emt 0:00:33]} (42... Re7 $11 {and Black stays safe.}) 43. Kg3 {[%emt 0:00:04]} ({Only move:} 43. e5 $1 $18 {[%cal Re5f6]} Rf7 44. Ke3 Re1+ 45. Kd2) 43... Rf7 {[%emt 0:00:35]} ({Black should play} 43... Re7 $1 $14) 44. e5 $1 $16 {[%emt 0:00:02] Black must now prevent e6.} Rd3+ {[%emt 0:00:10]} 45. Kh2 {[%emt 0:00:10]} f5 {[%emt 0:00:01]} (45... Re3 $16) 46. Re2 {[%emt 0:00:13]} (46. e6 $1 $18 {[%cal Re6f7]} Re7 47. Rb4+ Ka8 48. Re2) 46... Rb3 {[%emt 0:00:09]} 47. Ra6 {[%emt 0:00:14]} Rb4 {[%emt 0:00:09]} 48. e6 {[%emt 0:00:10]} (48. Rxc6 $16 Rxd4 49. Rxg6) 48... Re7 $14 {[%emt 0:00:04]} 49. Rxc6 {[%emt 0:00:01]} Rxd4 {[%emt 0:00:02]} 50. g3 {[%emt 0:00:06]} Re4 {[%emt 0:00:15]} (50... Kb7 $5 51. Rd6 $8 Re4 52. Rxe4 fxe4 $14) 51. Rxe4 {[%emt 0:00:04]} fxe4 $11 {[%emt 0:00:00] KR-KR} 52. Kg2 {[%emt 0:00:03]} Kb7 {[%emt 0:00:04]} 53. Rd6 {[%emt 0:00:02]} a5 {[%emt 0:00:01][%cal Ba7a5,Ba5a4][%mdl 32]} 54. Kf2 {[%emt 0:00:08] aiming for Ke3.} a4 {[%emt 0:00:00]} 55. Ke3 {[%emt 0:00:02]} a3 {[%emt 0:00:02] And now ...a2 would win.} 56. Rb6+ {[%emt 0:00:05]} (56. Kxe4 a2 57. Rd1 Rxe6+ 58. Kd5 Rc6 $19) (56. Rd7+ $2 Rxd7 57. exd7 Kc7 $19) 56... Ka7 $2 {[%emt 0:00:03][%mdl 8192]} (56... Kc8 $11) 57. Rb3 $18 {[%emt 0:00:02]} (57. Kxe4 $2 a2 58. Kd5 a1=Q $19) 57... a2 {[%emt 0:00:01]} 58. Ra3+ {[%emt 0:00:02]} (58. Kxe4 {is a self mate.} a1=Q 59. Rb6 Rc7 60. Rd6 Rxc5 61. Rd7+ Kb6 62. Rd6+ Kb5 63. Rd5 Qh1+ 64. Kf4 Rxd5 65. g4 hxg4 66. Kxg4 Rf5 67. Kg3 Qg1+ 68. Kh3 Rf3#) 58... Kb7 {[%emt 0:00:01]} 59. Rxa2 {[%emt 0:00:01]} ({Not} 59. Kxe4 Rxe6+ 60. Kd5 Ra6 61. c6+ Ka7 $11) 59... Rxe6 {[%emt 0:00:02]} 60. Rb2+ $1 {[%emt 0:00:01]} Kc7 {[%emt 0:00:03] [#]} 61. Rb6 $1 {[%emt 0:00:02][%mdl 512]} Re5 {[%emt 0:00:13]} (61... Re7 62. Rxg6) 62. Rxg6 {[%emt 0:00:04]} Rxc5 {[%emt 0:00:01]} 63. Kxe4 {[%emt 0:00:07]} Kd7 {[%emt 0:00:19]} 64. Rg5 {[%emt 0:00:06]} Rxg5 {[%emt 0:00:07]} 65. hxg5 {[%emt 0:00:01] KPP-KP. White mates.} Ke6 {[%emt 0:00:02]} 66. Kf4 {[%emt 0:00:01]} Ke7 {[%emt 0:00:02] [#]} 67. Ke5 $1 {[%emt 0:00:01]} Kf7 {[%emt 0:00:02]} 68. Kf5 {[%emt 0:00:01]} Kg7 {[%emt 0:00:00]} 69. g6 {[%emt 0:00:02]} Kg8 {[%emt 0:00:04] [#]} 70. Kg5 $1 {[%emt 0:00:01] Weighted Error Value: White=0.19 (very precise) /Black=0.20 (precise)} 1-0

[Event "AI Cup Div-2 2023"]
[Site "Online"]
[Date "2023.09.28"]
[Round "55.2"]
[White "Caruana, Fabiano"]
[Black "Kuzubov, Yuriy"]
[Result "0-1"]
[ECO "D35"]
[WhiteElo "2786"]
[BlackElo "2625"]
[Annotator "TA"]
[PlyCount "92"]
[EventDate "2023.09.18"]
[EventType "k.o."]
[EventCountry "NET"]
[SourceTitle "playchess.com"]
[Source "ChessBase"]
[SourceQuality "1"]
[TimeControl "900+3"]

{[%evp 18,92,29,26,58,51,29,17,20,16,26,34,35,33,45,29,45,30,33,41,51,50,61,16,23,35,24,25,28,9,31,0,55,12,17,13,21,0,0,0,0,0,0,-6,-1,-55,-42,-66,-66,-67,-63,-60,-63,-116,-93,-118,-117,-117,-118,-118,-118,-119,-119,-119,-118,-127,-135,-141,-124,-131,-142,-155,-99,-212,-204,-643,-634]} 1. d4 {[%emt 0:00:04]} Nf6 {[%emt 0:00:14]} 2. c4 {[%emt 0:00:02]} e6 {[%emt 0:00:02]} 3. Nc3 {[%emt 0:00:01]} d5 {[%emt 0:00:05]} 4. cxd5 {[%emt 0:00:02]} exd5 {[%emt 0:00:01]} 5. Bg5 {[%emt 0:00:01]} c6 {[%emt 0:00:01]} 6. e3 {[%emt 0:00:00]} Be7 {[%emt 0:00:01]} 7. Bd3 {[%emt 0:00:01]} Nbd7 {[%emt 0:00:02]} 8. Nf3 {[%emt 0:00:01]} Nh5 {[%emt 0:00:06]} 9. Bxe7 {[%emt 0:00:05]} Qxe7 {[%emt 0:00:01]} 10. O-O {[%emt 0:00:01]} g6 {[%emt 0:00:01] D35: Queen's Gambit Declined: Exchange Variation.} 11. Re1 {[%emt 0:00:05]} O-O {[%emt 0:00:05]} 12. Qc2 {[%emt 0:00:27]} Ndf6 {[%emt 0:00:13] The position is equal.} 13. Ne5 {[%emt 0:00:52]} Ng7 {[%emt 0:00:25]} 14. f3 {[%emt 0:00:15]} Be6 {[%emt 0:01:01]} 15. Qf2 {[%emt 0:00:11]} Rad8 {[%emt 0:00:22]} 16. Bf1 {[%emt 0:00:15] [#]} h5 $146 {[%emt 0:00:40]} ({Predecessor:} 16... Rfe8 17. a3 Bc8 18. b4 Ne6 19. Rad1 Nd7 20. e4 Nb6 21. exd5 Nxd5 22. Nxd5 cxd5 {1-0 Fernandez de La Vara,A (2485)-Diaz Perez,M (2460) CUB-ch Santa Clara 2022 (1)}) 17. Rad1 {[%emt 0:00:14]} Nd7 {[%emt 0:00:32]} 18. Nd3 {[%emt 0:00:14]} Qf6 {[%emt 0:00:29]} 19. b4 {[%emt 0:00:14]} Bf5 {[%emt 0:00:26]} 20. e4 {[%emt 0:00:39]} dxe4 {[%emt 0:00:04]} 21. fxe4 {[%emt 0:00:00]} Bg4 {[%emt 0:00:08]} 22. Rd2 {[%emt 0:00:01]} Qxf2+ {[%emt 0:00:33]} 23. Kxf2 {[%emt 0:00:04]} ({Don't play} 23. Rxf2 Nb6 $15) 23... Rfe8 {[%emt 0:00:01]} 24. a4 {[%emt 0:01:39]} Nf8 {[%emt 0:02:23]} (24... Nf6 $11) 25. d5 {[%emt 0:00:52]} cxd5 {[%emt 0:00:42]} 26. Nxd5 {[%emt 0:00:00] [#] aiming for Nf6+.} Nd7 {[%emt 0:00:08] Prevents Nf6+} 27. Nc5 {[%emt 0:01:07]} Nxc5 {[%emt 0:00:31]} 28. bxc5 {[%emt 0:00:00]} Kf8 {[%emt 0:00:14]} 29. Rb2 {[%emt 0:00:13]} Bc8 {[%emt 0:00:31]} 30. a5 {[%emt 0:00:16][%cal Oa5a6]} Ne6 {[%emt 0:00:15]} 31. Rc2 {[%emt 0:00:51]} (31. Nf6 $11 Re7 32. Nd5) 31... Ng5 {[%emt 0:00:21]} 32. Nf6 {[%emt 0:00:26]} Re5 {[%emt 0:00:28]} 33. a6 {[%emt 0:01:08]} bxa6 {[%emt 0:00:41]} 34. h4 {[%emt 0:00:14]} Ne6 {[%emt 0:00:04]} 35. c6 {[%emt 0:00:01]} (35. Nd5 $15) 35... Nd4 {[%emt 0:00:47]} 36. Rc4 {[%emt 0:02:07][%cal Of6d7]} Rd6 {[%emt 0:00:09][%csl LRc6,LRf6] Prevents Nd7+} 37. Nh7+ {[%emt 0:00:14]} Kg7 {[%emt 0:00:28]} 38. Ng5 {[%emt 0:00:35]} Nxc6 {[%emt 0:01:24]} 39. Nf3 {[%emt 0:00:02] [#]} Re8 {[%emt 0:00:23]} 40. e5 {[%emt 0:00:01]} Rde6 {[%emt 0:00:03]} 41. Rc5 {[%emt 0:00:01]} Bb7 {[%emt 0:00:14]} 42. Bc4 {[%emt 0:00:50]} R6e7 {[%emt 0:00:02]} 43. Kg3 {[%emt 0:00:10]} Rd8 {[%emt 0:00:17]} 44. e6 {[%emt 0:00:36]} fxe6 {[%emt 0:00:07]} ({Black should play} 44... Nd4 {...Nf5+ would be deadly.} 45. exf7 Rxe1 46. Nxe1 Nf5+ 47. Kh2 Rc8) 45. Ng5 {[%emt 0:00:01]} (45. Rxe6 $17 Rxe6 46. Bxe6) 45... Nd4 $19 {[%emt 0:00:11]} 46. Rd1 $2 {[%emt 0:00:34]} (46. Rxe6 Nxe6 47. Nxe6+ Rxe6 48. Bxe6) 46... Nf5+ {[%emt 0:00:13] Weighted Error Value: White=0.27 (precise) /Black=0.08 (flawless)} 0-1

[Event "AI Cup Div-2 2023"]
[Site "Online"]
[Date "2023.09.28"]
[Round "56.1"]
[White "Artemiev, Vladislav"]
[Black "Kuzubov, Yuriy"]
[Result "1-0"]
[ECO "D35"]
[WhiteElo "2697"]
[BlackElo "2625"]
[Annotator "TA"]
[PlyCount "75"]
[EventDate "2023.09.18"]
[EventType "k.o."]
[EventCountry "NET"]
[SourceTitle "playchess.com"]
[Source "ChessBase"]
[SourceQuality "1"]
[TimeControl "900+3"]

{[%evp 9,75,0,10,14,14,7,10,0,9,15,27,29,21,0,46,6,30,13,54,54,40,46,47,34,42,34,35,35,38,38,51,52,71,64,67,63,68,71,85,96,85,80,71,60,102,103,100,102,106,105,127,127,133,106,105,111,107,107,667,661,652,600,1112,1037,6291,6091,2926,2494]} 1. d4 {[%emt 0:00:16]} Nf6 {[%emt 0:00:09]} 2. c4 {[%emt 0:00:02]} e6 {[%emt 0:00:01]} 3. Nc3 {[%emt 0:01:25]} d5 {[%emt 0:00:02]} 4. cxd5 {[%emt 0:00:02]} exd5 {[%emt 0:00:01]} 5. Bf4 {[%emt 0:00:01]} Bd6 {[%emt 0:00:34]} 6. Bxd6 {[%emt 0:00:03] D35: Queen's Gambit Declined: Exchange Variation.} Qxd6 {[%emt 0:00:01]} 7. e3 {[%emt 0:00:01]} Bf5 {[%emt 0:01:01]} 8. Qf3 {[%emt 0:00:36] The position is equal.} Bg6 {[%emt 0:00:40]} 9. Nge2 {[%emt 0:03:58] [#]} Nc6 $146 {[%emt 0:01:38]} ({Predecessor:} 9... Qb4 10. O-O-O Nbd7 11. Nf4 c6 12. h4 Nb6 13. Nd3 Qe7 14. h5 Be4 15. Qg3 O-O {½-½ Galperin,P (2528)-Sargsyan,S (2630) Sharjah Masters 6th 2023 (7)}) 10. Nf4 {[%emt 0:01:14][%cal Rf4d5]} Ne7 {[%emt 0:02:22]} 11. h4 {[%emt 0:02:05]} Be4 {[%emt 0:01:26]} (11... O-O $11) 12. Qd1 {[%emt 0:01:51]} (12. Qe2 $5) 12... h5 {[%emt 0:00:26]} 13. Nxe4 {[%emt 0:01:53]} Nxe4 {[%emt 0:00:17]} 14. a3 {[%emt 0:00:36] Repels Qb4+} (14. Qb3 $5 {[%cal Rf1d3]}) 14... g6 {[%emt 0:02:31]} 15. Bd3 {[%emt 0:00:01]} Nf6 {[%emt 0:00:29]} 16. Rc1 {[%emt 0:00:24]} O-O {[%emt 0:00:16]} 17. g3 {[%emt 0:00:24]} c6 {[%emt 0:00:02]} 18. Kf1 {[%emt 0:00:02]} Rae8 {[%emt 0:00:21]} 19. Kg2 {[%emt 0:00:07]} Nc8 {[%emt 0:00:03]} 20. b4 {[%emt 0:00:25]} Qd7 {[%emt 0:00:02]} 21. a4 {[%emt 0:00:10]} a6 {[%emt 0:00:47] [#]} 22. b5 $1 {[%emt 0:00:03]} axb5 {[%emt 0:00:05]} 23. axb5 {[%emt 0:00:01]} Nd6 {[%emt 0:00:01]} 24. bxc6 {[%emt 0:00:01]} bxc6 {[%emt 0:00:01]} 25. Qa4 {[%emt 0:00:15]} Rc8 {[%emt 0:00:07]} 26. Rc2 {[%emt 0:00:01]} Nf5 {[%emt 0:01:02]} 27. Bxf5 {[%emt 0:00:10]} Qxf5 {[%emt 0:00:01] [#]} 28. Rhc1 $1 {[%emt 0:00:01]} (28. Rxc6 $2 Rxc6 29. Qxc6 Rc8 $19) 28... Qe4+ {[%emt 0:00:07]} 29. Kg1 {[%emt 0:00:00]} Ng4 {[%emt 0:01:32]} 30. Rxc6 {[%emt 0:00:13]} Qf3 {[%emt 0:00:11]} 31. Qa2 {[%emt 0:00:01] Active counter play!} (31. Rxc8 $2 Qxf2+ 32. Kh1 Qh2#) 31... Rxc6 {[%emt 0:00:05]} 32. Rxc6 {[%emt 0:00:00]} Rb8 {[%emt 0:00:04][%cal Ob8b1] ( -> ...Rb1+!)} 33. Rc1 {[%emt 0:00:01][%cal Bc6c1,Bc1e1,Be1e3][%mdl 32] Wards off Rb1} (33. Nxd5 $2 Rb1+ 34. Qxb1 Qxf2+ 35. Kh1 Qh2#) 33... Nxe3 $2 {[%emt 0:00:10][%mdl 8192] Black cannot hold the game after this.} 34. Qa3 $18 {[%emt 0:00:01][%mdl 64] Pin. White is clearly winning.} Re8 {[%emt 0:00:03][%cal Og6g5]} 35. Re1 {[%emt 0:00:02][%mdl 64] Pin} g5 {[%emt 0:00:06]} 36. hxg5 {[%emt 0:00:03][%cal Re1e3]} ({And not} 36. Rxe3 Rxe3 37. fxe3 (37. Qxe3 Qxe3 38. fxe3 gxf4 $11) 37... gxf4 38. gxf4 Qd1+ 39. Kf2 Qd2+ 40. Kf3 Qd1+ 41. Kg2 (41. Kf2 Qd2+ 42. Kg3 Qe1+ 43. Kg2 Qe2+ 44. Kh1 Qe1+ 45. Kg2 Qe2+ 46. Kh3 Qg4+ 47. Kh2 Qxh4+ 48. Kg2 Qg4+ 49. Kf2 Qh4+ 50. Kg2 Qg4+ 51. Kf2 Qe6 $11) 41... Qg4+ 42. Kh2 Qe2+ 43. Kh3 Qg4+ 44. Kh2 Qxh4+ 45. Kg2 Qg4+ 46. Kf2 Qe6 $11) 36... h4 {[%emt 0:00:01]} 37. Rxe3 {[%emt 0:00:02]} ({Not} 37. fxe3 Qxg3+ 38. Kf1 Qf3+ 39. Kg1 Qg3+ 40. Kf1 Qf3+ 41. Kg1 Qg3+ $11) 37... Qd1+ {[%emt 0:00:02]} 38. Kg2 {[%emt 0:00:01] Weighted Error Value: White=0.06 (flawless) /Black=0.31} 1-0